bitfinex/quotes_ETHUSD_20241129
["timestamp","ask_amount","ask_price","bid_price","bid_amount"]
[1732872150152,3.60861,3581.2,3580.5,0.58684929]
[1732872150354,3.60856,3581.2,3580.5,0.58684929]
[1732872150869,2.79244,3581.1,3580.5,0.58684929]
[1732872151763,2.79219,3581.5,3580.7,2.79269]
[1732872151963,2.79211,3581.6,3580.8,2.7926]
[1732872152160,2.79211,3581.6,3580.9,0.94808329]
[1732872152493,2.79215,3581.5,3580.9,0.94808329]
[1732872152793,2.79222,3581.4,3580.9,0.94808329]
[1732872153160,2.79224,3581.4,3581.0,0.07084776]
[1732872153566,0.8172,3581.3,3581.0,0.07084776]
[1732872153886,0.8172,3581.3,3580.5,0.58684929]
[1732872154051,0.8172,3581.3,3581.1,0.07080333]
[1732872154255,0.8172,3581.3,3580.6,2.79279]
[1732872154482,0.8172,3581.3,3580.7,0.688243]
[1732872154790,3.60951,3581.3,3580.7,0.688243]
[1732872156190,2.79237,3581.2,3580.7,0.688243]
[1732872158161,3.6095,3581.3,3580.7,0.688243]
[1732872158363,2.79252,3581.0,3580.7,0.07098107]
[1732872158998,2.79252,3581.0,3580.5,0.58684929]
[1732872159318,2.79236,3581.2,3580.5,0.58684929]
[1732872159456,2.79236,3581.2,3579.9,3.0]
[1732872159457,2.79265,3580.9,3580.6,0.07123273]
[1732872159655,2.79265,3580.9,3580.1,5.79314]
[1732872159892,2.79265,3580.9,3580.2,0.07141053]
[1732872160103,2.79275,3580.7,3580.2,0.07141053]
[1732872160268,2.79275,3580.7,3580.0,3.0]
[1732872160461,2.79275,3580.7,3580.3,0.07137532]
[1732872160661,2.79275,3580.7,3580.1,3.96706829]
[1732872161191,3.55253,3581.1,3580.2,3.0]
[1732872161396,2.79273,3580.8,3580.2,3.0714366]
[1732872162094,2.79251,3581.0,3580.2,5.8645066]
[1732872162305,2.79265,3580.9,3580.3,0.96247649]
[1732872162536,2.79251,3581.0,3580.3,1.03390228]
[1732872162819,2.7926,3580.9,3580.3,1.03390228]
[1732872162971,2.79252,3581.0,3580.3,3.82694228]
[1732872163311,2.79252,3581.0,3580.4,3.55447599]
[1732872163469,0.7601,3581.1,3580.5,2.79287]
[1732872163670,0.7601,3581.1,3580.6,0.07129244]
[1732872163976,2.7922,3581.4,3580.6,2.86410244]
[1732872164278,2.7922,3581.4,3580.7,2.79272]
[1732872164469,2.7922,3581.4,3580.7,3.51263884]
[1732872164671,2.79231,3581.3,3580.8,0.07120356]
[1732872165084,0.8313,3581.2,3580.8,0.07120356]
[1732872167821,3.62366,3581.2,3580.8,0.07120356]
[1732872168112,2.79251,3581.0,3580.4,0.76150599]
[1732872168311,2.79251,3581.0,3580.5,1.0136066]
[1732872169516,2.79268,3580.8,3580.5,1.0136066]
[1732872169716,2.79268,3580.8,3580.5,0.07128471]
[1732872170030,2.79252,3581.0,3580.1,0.7559]
[1732872170232,2.79276,3580.7,3580.6,0.07125618]
[1732872170399,2.79276,3580.7,3580.1,0.7559]
[1732872170599,0.814,3580.6,3580.0,5.79328]
[1732872170817,0.814,3580.6,3580.2,0.0714712]
[1732872170996,0.814,3580.6,3580.1,1.31850995]
[1732872171201,0.814,3580.6,3580.3,0.07142674]
[1732872171398,0.814,3580.6,3580.2,0.07147947]
[1732872171603,0.814,3580.6,3580.4,0.07139056]
[1732872171817,0.814,3580.6,3580.3,0.07143501]
[1732872172117,0.814,3580.6,3580.4,0.07139056]
[1732872172298,0.814,3580.6,3580.1,1.24699429]
[1732872172502,0.814,3580.6,3580.5,0.07134611]
[1732872172723,0.814,3580.6,3580.2,3.49713743]
[1732872172923,0.814,3580.6,3580.3,0.07143501]
[1732872174514,2.79298,3580.4,3580.3,0.07143501]
[1732872174691,3.60684,3580.6,3579.6,2.79353]
[1732872174913,2.79304,3580.4,3579.7,0.0691618]
[1732872175101,2.79307,3580.3,3579.7,0.0691618]
[1732872175531,0.811,3580.2,3579.7,0.0691618]
[1732872175734,0.811,3580.2,3579.4,3.84542289]
[1732872175899,0.811,3580.2,3579.5,0.06959457]
[1732872176243,0.811,3580.2,3579.6,0.67266637]
[1732872176609,0.811,3580.2,3579.7,0.06959271]
[1732872177005,0.811,3580.2,3579.6,3.46625637]
[1732872177327,0.811,3580.2,3579.7,0.06959271]
[1732872177532,0.811,3580.2,3579.6,3.46625637]
[1732872177846,0.811,3580.2,3579.7,1.08013664]
[1732872178208,3.60416,3580.2,3579.7,1.08013664]
[1732872179845,2.79322,3580.1,3579.7,0.06959271]
[1732872180314,2.79322,3580.1,3579.8,0.06958491]
[1732872180521,2.79322,3580.1,3579.4,3.84542289]
[1732872180722,3.60417,3580.2,3579.9,0.06954044]
[1732872180905,3.60417,3580.2,3579.4,6.63918289]
[1732872181101,2.79324,3580.1,3580.0,0.06949598]
[1732872181315,2.79324,3580.1,3579.5,0.66391829]
[1732872181608,2.79324,3580.1,3580.0,0.06949598]
[1732872181917,0.811,3580.2,3579.4,3.07552289]
[1732872181918,2.79343,3579.9,3579.4,3.07552289]
[1732872182121,2.79361,3579.6,3579.1,0.7865]
[1732872182354,0.1,3581.2,3579.6,0.7574]
[1732872182355,3.7794,3581.2,3579.6,0.7574]
[1732872182504,2.79252,3581.0,3580.1,5.86866289]
[1732872182710,0.7794,3580.5,3579.7,3.83292289]
[1732872183008,0.7794,3580.5,3579.7,4.51621518]
[1732872183009,2.79299,3580.4,3579.7,4.51621518]
[1732872183348,2.79298,3580.4,3579.8,0.06962212]
[1732872183519,2.79319,3580.2,3579.4,0.8068]
[1732872183721,3.57425,3580.0,3579.9,0.06957765]
[1732872184045,3.1,3581.2,3579.4,0.8068]
[1732872184046,2.79292,3580.5,3580.0,0.8068]
[1732872184249,1.3309,3581.1,3580.0,0.8068]
[1732872184250,2.79277,3580.7,3580.0,0.8068]
[1732872184420,2.79277,3580.7,3580.1,0.06948873]
[1732872184631,2.79262,3580.9,3580.1,0.06948873]
[1732872184934,2.79273,3580.8,3580.1,2.86269873]
[1732872185653,2.79275,3580.7,3580.1,0.06948873]
[1732872185816,2.79289,3580.6,3580.1,0.06948873]
[1732872186260,2.79296,3580.5,3580.1,0.06948873]
[1732872186554,0.7672,3580.5,3580.1,0.06948873]
[1732872186741,2.79239,3581.2,3580.1,3.14501162]
[1732872186927,0.8023,3581.1,3580.2,0.39518116]
[1732872187125,2.79262,3580.9,3580.2,0.46480807]
[1732872187674,0.65447614,3582.0,3580.2,0.06962691]
[1732872187675,3.56696,3580.3,3580.2,0.06962691]
[1732872188029,2.79323,3580.1,3579.5,0.776]
[1732872188262,3.56696,3580.3,3580.2,0.06947636]
[1732872188557,3.56696,3580.3,3579.5,0.776]
[1732872188558,0.7739,3580.3,3579.5,0.776]
[1732872188754,2.7933,3580.0,3579.3,3.0]
[1732872188967,3.61604,3579.7,3579.1,0.579399]
[1732872189664,0.8225,3579.7,3579.1,3.373379]
[1732872190364,2.79361,3579.6,3579.1,0.579399]
[1732872191439,0.8225,3579.7,3579.1,0.579399]
[1732872191765,2.79361,3579.6,3579.1,0.579399]
[1732872191950,2.79376,3579.4,3578.6,3.62272]
[1732872192124,2.79361,3579.6,3578.6,0.8284]
[1732872192332,2.79384,3579.3,3578.6,0.8284]
[1732872192969,2.79384,3579.3,3578.6,3.62272]
[1732872193648,2.79393,3579.2,3578.6,0.8284]
[1732872193997,0.7927,3579.1,3578.7,0.362288]
[1732872194344,3.58672,3579.1,3578.7,0.362288]
[1732872194881,0.55,3579.0,3578.4,0.8268]
[1732872195089,0.7927,3579.1,3578.5,2.79444]
[1732872195240,2.79369,3579.5,3578.5,2.79444]
[1732872195241,2.79394,3579.2,3578.5,2.79444]
[1732872195946,2.79369,3579.5,3578.7,2.7943]
[1732872196144,2.79369,3579.5,3578.9,0.8268]
[1732872196345,0.7957,3579.7,3578.9,0.8268]
[1732872196569,0.55,3579.6,3578.9,0.8268]
[1732872196776,0.7957,3579.7,3579.0,5.58812]
[1732872196992,0.7957,3579.7,3579.1,2.79399]
[1732872197147,0.7957,3579.7,3579.1,0.390022]
[1732872197345,2.79364,3579.6,3579.1,0.390022]
[1732872197655,0.7957,3579.7,3579.1,0.390022]
[1732872198249,0.7957,3579.7,3579.2,0.07001625]
[1732872199685,2.79371,3579.5,3579.2,0.07001625]
[1732872200102,2.79371,3579.5,3578.8,3.0736]
[1732872200299,2.79371,3579.5,3579.3,0.06997178]
[1732872200471,2.79371,3579.5,3578.8,3.0736]
[1732872200671,2.79371,3579.5,3578.9,0.07051785]
[1732872200874,3.58925,3579.7,3578.9,2.86462785]
[1732872201175,2.79369,3579.5,3578.9,0.07051785]
[1732872201369,2.79369,3579.5,3578.9,0.38494263]
[1732872201894,3.55081,3580.0,3579.0,0.7514]
[1732872202066,0.7575,3581.0,3579.4,0.7514]
[1732872202266,2.79299,3580.4,3579.6,2.79354]
[1732872202600,2.79306,3580.3,3579.7,0.07045957]
[1732872202986,0.8332,3580.2,3579.7,0.07045957]
[1732872203194,0.8332,3580.2,3579.6,2.79354]
[1732872203377,0.8332,3580.2,3579.8,0.07096231]
[1732872203577,0.8332,3580.2,3579.7,3.2753091]
[1732872203845,0.8332,3580.2,3579.8,0.0704151]
[1732872204173,0.8332,3580.2,3579.7,2.79351]
[1732872204371,0.8332,3580.2,3579.8,0.0704151]
[1732872204700,0.8332,3580.2,3579.5,2.79361]
[1732872204902,0.8332,3580.2,3579.9,0.07046599]
[1732872205086,0.8332,3580.2,3579.5,2.79361]
[1732872205294,0.8332,3580.2,3580.0,0.07032616]
[1732872205608,0.8332,3580.2,3580.1,0.0702817]
[1732872206105,0.8332,3580.2,3579.7,2.79351]
[1732872206313,0.8332,3580.2,3580.1,0.07004178]
[1732872206508,0.7734,3580.5,3579.7,2.79351]
[1732872206813,2.79275,3580.7,3580.0,2.79328]
[1732872206989,0.7734,3580.8,3580.2,2.79311]
[1732872207195,0.7734,3580.8,3580.3,0.06996945]
[1732872207384,2.79261,3580.9,3580.4,0.8021]
[1732872207624,2.79261,3580.9,3580.5,0.06997588]
[1732872208119,2.79254,3581.0,3580.5,0.06997588]
[1732872208317,0.7734,3581.1,3580.5,0.06997588]
[1732872208526,2.79237,3581.2,3580.6,2.79282]
[1732872208731,2.79237,3581.2,3580.6,2.86241766]
[1732872208943,2.79237,3581.2,3580.6,0.06959766]
[1732872209155,2.79237,3581.2,3580.4,0.8021]
[1732872209441,2.79237,3581.2,3580.5,0.06965268]
[1732872209748,0.7884,3581.4,3580.5,0.06965268]
[1732872209749,3.58062,3581.4,3580.6,2.79279]
[1732872210044,0.7884,3581.4,3580.7,0.06957832]
[1732872210420,2.79237,3581.2,3580.5,2.79283]
[1732872210748,2.79237,3581.2,3580.6,0.06962276]
[1732872211057,2.79252,3581.0,3580.6,0.06962276]
[1732872211423,2.79239,3581.2,3580.4,3.59507]
[1732872211632,2.79223,3581.4,3580.7,0.07002538]
[1732872211821,2.79234,3581.3,3580.5,2.7929]
[1732872212131,2.79259,3580.9,3580.4,0.8021]
[1732872212462,2.79282,3580.6,3580.5,0.06921817]
[1732872212747,2.54282,3580.6,3580.5,0.06921817]
[1732872212959,2.54282,3580.6,3579.8,3.57918]
[1732872213248,2.54282,3580.6,3579.8,0.7858]
[1732872213410,0.8143,3580.5,3579.9,0.06938408]
[1732872214203,2.54282,3580.6,3579.9,3.50694449]
[1732872215241,2.54282,3580.6,3580.0,0.8226]
[1732872215651,2.54282,3580.6,3580.1,0.06929516]
[1732872215822,3.61504,3581.0,3580.3,2.79304]
[1732872216145,3.61504,3581.0,3580.4,0.06916179]
[1732872217055,0.8225,3581.0,3580.4,0.06916179]
[1732872217252,2.79261,3580.9,3580.4,0.06916179]
[1732872217454,2.79261,3580.9,3580.2,2.79312]
[1732872217754,2.79261,3580.9,3580.2,3.49844304]
[1732872218051,2.79261,3580.9,3580.3,0.06920625]
[1732872219160,2.79261,3580.9,3580.3,2.86225625]
[1732872219329,2.79261,3580.9,3580.3,0.06920625]
[1732872223762,0.8225,3581.0,3580.3,0.06920625]
[1732872224061,2.79268,3580.8,3580.1,2.79319]
[1732872224264,2.79268,3580.8,3580.2,0.42600104]
[1732872224467,2.79268,3580.8,3580.2,0.49552583]
[1732872224760,3.61502,3581.0,3580.2,3.28865583]
[1732872225643,2.79263,3580.9,3580.2,3.28865583]
[1732872226232,2.79268,3580.8,3580.2,0.49552583]
[1732872226579,0.55,3580.9,3580.2,0.06952479]
[1732872226727,2.79268,3580.8,3580.1,2.79321]
[1732872227168,2.79268,3580.8,3580.2,0.06968258]
[1732872227964,2.79268,3580.8,3580.1,2.79321]
[1732872228154,2.79268,3580.8,3580.2,0.06997355]
[1732872228351,2.79268,3580.8,3580.2,0.78230995]
[1732872228551,2.79268,3580.8,3580.3,0.7963]
[1732872228754,2.79275,3580.7,3580.4,0.06981839]
[1732872229349,2.79283,3580.6,3580.4,0.06981839]
[1732872230847,0.756,3581.2,3580.4,0.06981839]
[1732872231147,2.79283,3580.6,3580.0,0.8238]
[1732872231349,2.79283,3580.6,3580.1,0.0699518]
[1732872231589,2.79292,3580.5,3580.1,0.0699518]
[1732872231773,2.793,3580.4,3580.1,0.0699518]
[1732872232091,2.79306,3580.3,3579.7,0.8238]
[1732872232253,2.79306,3580.3,3580.2,0.0700517]
[1732872232460,2.79306,3580.3,3579.7,1.185556]
[1732872232848,2.79306,3580.3,3579.8,0.0702296]
[1732872233388,2.79315,3580.2,3579.9,0.07016854]
[1732872233567,2.79315,3580.2,3579.7,1.185556]
[1732872233758,2.79315,3580.2,3579.8,0.46813262]
[1732872234595,2.79337,3579.9,3579.8,0.07021302]
[1732872234748,0.7722,3580.0,3579.0,0.7714]
[1732872235082,2.79374,3579.5,3579.1,0.06838387]
[1732872235280,2.79378,3579.4,3579.1,0.06838387]
[1732872235490,3.56596,3579.4,3579.1,0.06838387]
[1732872235647,2.79392,3579.2,3579.1,0.06838387]
[1732872235842,2.79416,3578.9,3578.4,0.7987]
[1732872236183,2.79413,3579.0,3578.5,0.06859823]
[1732872236483,2.79392,3579.2,3578.4,0.7987]
[1732872236648,2.79392,3579.2,3578.6,0.06855373]
[1732872236849,2.79392,3579.2,3578.4,0.7987]
[1732872237091,2.79392,3579.2,3578.7,0.06859611]
[1732872237393,0.55,3579.3,3578.8,0.06856819]
[1732872237679,0.55,3579.3,3578.6,2.79438]
[1732872237680,2.79385,3579.3,3578.6,2.79438]
[1732872237887,2.79385,3579.3,3578.9,0.06852368]
[1732872238041,2.79385,3579.3,3578.7,0.359308]
[1732872238246,2.79385,3579.3,3579.0,0.06847919]
[1732872238478,2.79385,3579.3,3578.7,0.359308]
[1732872238665,3.56996,3579.6,3579.1,0.06843469]
[1732872238866,2.79376,3579.4,3578.7,3.153608]
[1732872239045,2.79376,3579.4,3579.2,0.0683902]
[1732872239251,2.79376,3579.4,3578.7,3.153608]
[1732872239451,2.79376,3579.4,3579.3,0.06834571]
[1732872239784,2.79384,3579.3,3578.7,2.7943]
[1732872240082,2.79371,3579.5,3578.8,0.7835]
[1732872240248,2.79377,3579.4,3578.8,1.14128]
[1732872241649,2.79386,3579.3,3578.8,1.14128]
[1732872241985,2.79394,3579.2,3578.3,5.87010289]
[1732872242162,2.79416,3578.9,3578.4,0.826]
[1732872242549,2.79402,3579.1,3578.4,0.826]
[1732872242743,2.79408,3579.0,3578.4,0.826]
[1732872242973,2.79408,3579.0,3578.5,0.06864323]
[1732872243249,2.79408,3579.0,3578.4,1.188056]
[1732872243485,2.79416,3578.9,3578.6,0.06859872]
[1732872243682,2.79416,3578.9,3578.5,0.06864323]
[1732872243991,2.79416,3578.9,3578.6,0.06859872]
[1732872244162,2.79416,3578.9,3578.4,0.826]
[1732872244360,2.79385,3579.3,3578.5,0.06864323]
[1732872244788,2.7941,3579.0,3578.5,0.06864323]
[1732872244991,2.7941,3579.0,3578.4,0.8321]
[1732872245515,2.7941,3579.0,3578.5,0.06864323]
[1732872245805,2.7941,3579.0,3578.4,0.8321]
[1732872246012,2.7941,3579.0,3578.5,0.0686273]
[1732872246211,2.79392,3579.2,3578.7,0.7904]
[1732872246513,2.79384,3579.3,3578.9,0.763]
[1732872246873,2.79384,3579.3,3579.0,0.06866546]
[1732872247077,0.55,3579.5,3579.0,0.06866546]
[1732872247078,2.79371,3579.5,3579.0,0.06866546]
[1732872247614,3.6056,3580.0,3579.0,0.06866546]
[1732872247910,2.79296,3580.5,3579.1,0.7558]
[1732872248225,0.7709,3580.7,3579.9,2.79335]
[1732872248371,2.79293,3580.5,3579.5,0.7558]
[1732872248572,2.79301,3580.4,3579.7,2.79347]
[1732872248774,0.1,3581.4,3579.4,3.07552289]
[1732872248775,2.79266,3580.9,3579.9,0.7558]
[1732872248996,2.79268,3580.8,3580.1,2.79321]
[1732872249185,2.79275,3580.7,3580.2,0.06837875]
[1732872249512,2.79295,3580.5,3579.9,0.7558]
[1732872249808,2.79295,3580.5,3578.9,2.79409]
[1732872249809,0.8292,3580.4,3579.6,0.752]
[1732872250013,2.79266,3580.9,3580.1,2.79315]
[1732872250183,2.79266,3580.9,3580.2,0.82009241]
[1732872250583,2.79269,3580.8,3580.2,0.82009241]
[1732872250995,5.58542,3580.8,3580.2,0.82009241]
[1732872251194,2.79275,3580.7,3580.2,0.82009241]
[1732872251510,2.79257,3581.0,3580.2,0.82009241]
[1732872251715,0.55,3581.3,3580.2,0.82009241]
[1732872251716,2.79259,3580.9,3580.3,2.79303]
[1732872252023,2.79259,3580.9,3580.4,0.06800348]
[1732872252624,2.79259,3580.9,3580.2,3.90643724]
[1732872252779,2.79259,3580.9,3580.3,0.06804794]
[1732872253094,0.55,3581.1,3580.3,2.86109794]
[1732872253287,0.7931,3581.4,3580.5,0.818]
[1732872253288,2.79223,3581.4,3580.5,0.818]
[1732872253675,0.0179556,3582.2,3580.6,0.06784486]
[1732872253676,2.79257,3581.0,3580.6,0.06784486]
[1732872253891,2.79275,3580.7,3580.6,0.06784486]
[1732872254314,2.79275,3580.7,3580.2,0.7794]
[1732872254483,2.793,3580.4,3579.8,0.7652]
[1732872254677,2.793,3580.4,3580.3,0.06567391]
[1732872254980,2.79264,3580.9,3580.0,2.79328]
[1732872255176,2.79264,3580.9,3580.1,0.06563023]
[1732872255424,2.79281,3580.7,3580.1,0.06563023]
[1732872255577,2.7929,3580.5,3580.1,0.06563023]
[1732872255778,2.7927,3580.8,3579.9,2.79336]
[1732872255985,2.79275,3580.7,3580.0,0.7215307]
[1732872256281,2.79251,3581.0,3580.0,0.7215307]
[1732872256482,2.79251,3581.0,3580.1,0.7652]
[1732872256725,3.7914,3581.6,3580.1,0.7652]
[1732872256934,2.79268,3580.8,3580.2,0.06558576]
[1732872257214,0.55,3581.5,3580.2,0.06558576]
[1732872257377,2.79252,3581.0,3580.3,2.79306]
[1732872257581,2.79261,3580.9,3580.4,0.06557972]
[1732872257881,0.55,3581.3,3580.5,0.757]
[1732872258129,0.55,3581.1,3580.4,0.06557972]
[1732872258278,2.79275,3580.7,3580.6,0.0654908]
[1732872258478,2.79288,3580.6,3580.2,0.8023]
[1732872258924,2.79288,3580.6,3580.3,0.06569049]
[1732872259125,2.7927,3580.8,3580.3,0.06569049]
[1732872259623,2.79275,3580.7,3580.3,0.06569049]
[1732872259779,2.79275,3580.7,3580.3,0.43181854]
[1732872259983,2.79278,3580.7,3580.3,0.43181854]
[1732872260388,2.79252,3581.0,3580.3,0.43181854]
[1732872260594,2.79236,3581.2,3580.4,0.7705]
[1732872260826,2.79236,3581.2,3580.5,0.06524493]
[1732872261032,2.7922,3581.4,3580.5,2.85814493]
[1732872261362,6.61234,3581.6,3580.7,0.8091]
[1732872261627,2.79238,3581.2,3580.8,0.06511155]
[1732872262130,2.79236,3581.2,3580.8,0.06511155]
[1732872263334,0.8238,3582.1,3580.9,0.7857]
[1732872263536,2.79226,3581.4,3580.9,0.7857]
[1732872263849,2.79228,3581.3,3581.0,0.0649141]
[1732872264319,2.79226,3581.4,3581.0,0.0649141]
[1732872265437,2.79228,3581.3,3581.0,0.0649141]
[1732872266139,2.79205,3581.6,3581.0,0.0649141]
[1732872266443,2.79215,3581.5,3581.0,0.0649141]
[1732872268634,2.79232,3581.3,3581.0,0.0649141]
[1732872268837,2.79243,3581.1,3581.0,0.0649141]
[1732872269039,2.79243,3581.1,3579.6,3.07552289]
[1732872269040,2.79263,3580.9,3580.2,0.7655]
[1732872269345,2.79281,3580.7,3580.2,0.7655]
[1732872269642,2.79281,3580.7,3580.3,0.06281717]
[1732872270397,2.79263,3580.9,3580.3,0.06281717]
[1732872270702,2.79274,3580.8,3580.3,0.06281717]
[1732872270932,2.79263,3580.9,3580.3,0.06281717]
[1732872271134,2.79284,3580.6,3580.3,0.06281717]
[1732872271639,2.79269,3580.8,3580.3,0.06281717]
[1732872271815,2.79247,3581.1,3580.4,0.8187]
[1732872272012,2.79239,3581.2,3580.5,0.06078725]
[1732872272216,2.79227,3581.4,3580.6,3.61151]
[1732872272619,2.79213,3581.5,3580.8,2.79261]
[1732872272831,2.79213,3581.5,3580.3,0.36214772]
[1732872272832,2.79197,3581.7,3580.9,3.67241577]
[1732872273016,2.79197,3581.7,3581.0,3.15968158]
[1732872273348,2.79197,3581.7,3581.1,0.06065266]
[1732872273505,2.79202,3581.7,3581.1,0.06065266]
[1732872273847,2.79215,3581.5,3581.1,0.06065266]
[1732872274147,2.79226,3581.4,3581.1,0.06065266]
[1732872274299,2.79215,3581.5,3581.1,0.06065266]
[1732872274502,2.79215,3581.5,3580.9,0.8187]
[1732872274739,2.79215,3581.5,3581.2,0.06060088]
[1732872274920,2.79215,3581.5,3580.9,1.459118]
[1732872275121,2.79215,3581.5,3581.4,0.7786]
[1732872275544,2.79215,3581.5,3581.4,0.83910274]
[1732872276027,2.79198,3581.7,3581.4,0.83910274]
[1732872276605,2.79184,3581.9,3581.4,0.83910274]
[1732872277042,2.8095356,3582.2,3581.4,0.83910274]
[1732872277347,2.79173,3582.0,3581.5,0.34138239]
[1732872277642,2.79173,3582.0,3581.6,0.06021351]
[1732872278503,2.79181,3581.9,3581.6,0.06021351]
[1732872278704,2.8095456,3582.2,3581.4,0.7786]
[1732872278912,2.8095456,3582.2,3581.7,0.06020272]
[1732872279141,2.8095456,3582.2,3581.4,3.57078]
[1732872279327,2.8095456,3582.2,3581.8,0.06015829]
[1732872279524,2.8095456,3582.2,3581.5,0.357078]
[1732872279733,2.8095456,3582.2,3581.9,0.0599066]
[1732872279947,2.79168,3582.1,3581.5,0.357078]
[1732872280556,2.79168,3582.1,3581.6,0.06003991]
[1732872280961,2.79182,3581.9,3581.6,0.06003991]
[1732872281128,2.79197,3581.7,3581.6,0.06003991]
[1732872281459,0.7516,3582.1,3581.4,0.7786]
[1732872281460,2.79185,3581.9,3581.4,0.7786]
[1732872281758,2.79211,3581.6,3581.5,0.06008435]
[1732872282048,0.55,3581.6,3580.8,0.7703]
[1732872282252,2.79237,3581.2,3580.9,0.06032828]
[1732872282840,2.79244,3581.1,3580.9,0.06032828]
[1732872283656,2.79251,3581.0,3580.9,0.06032828]
[1732872283817,2.79251,3581.0,3580.8,0.7703]
[1732872284026,1.3145,3581.6,3580.8,0.7703]
[1732872284218,1.3145,3581.6,3580.3,3.43767061]
[1732872284219,0.55,3582.1,3581.1,3.07552289]
[1732872284519,0.0179556,3582.2,3581.2,0.36816175]
[1732872284724,0.0179556,3582.2,3581.2,0.06060946]
[1732872284950,2.79221,3581.4,3581.2,0.06060946]
[1732872285261,2.79221,3581.4,3581.3,0.06017554]
[1732872285718,2.79178,3582.0,3580.7,3.07552289]
[1732872285917,2.7922,3581.4,3581.3,0.06047641]
[1732872286157,2.7922,3581.4,3580.7,3.07552289]
[1732872286325,2.7922,3581.4,3580.7,3.94164918]
[1732872286549,2.7922,3581.4,3580.8,0.06031744]
[1732872286953,0.7555,3582.1,3580.8,0.06031744]
[1732872287151,2.79213,3581.5,3580.9,0.8278]
[1732872287464,2.79213,3581.5,3581.0,0.06022853]
[1732872287664,2.79213,3581.5,3581.0,0.8224573]
[1732872288083,2.79193,3581.8,3581.1,0.7786]
[1732872288264,2.792,3581.7,3581.1,0.7786]
[1732872288451,2.792,3581.7,3581.2,0.06013963]
[1732872288951,2.79174,3582.0,3581.3,0.7786]
[1732872289156,2.79174,3582.0,3581.3,1.49717684]
[1732872289448,2.79174,3582.0,3581.4,0.06005075]
[1732872289878,0.0179556,3582.2,3581.4,0.06005075]
[1732872290186,2.79194,3581.8,3581.4,0.06005075]
[1732872292496,2.79197,3581.7,3581.4,0.06005075]
[1732872292656,0.0179556,3582.2,3581.4,0.06005075]
[1732872292657,2.79204,3581.6,3581.4,0.06005075]
[1732872293190,2.79212,3581.5,3581.4,0.06005075]
[1732872293896,3.350529,3581.5,3581.4,0.06005075]
[1732872294317,3.350529,3581.5,3581.0,0.8141]
[1732872294318,2.79226,3581.4,3581.0,0.8141]
[1732872294492,2.79243,3581.1,3581.0,0.8141]
[1732872295390,2.79243,3581.1,3580.4,0.8232]
[1732872295624,3.34204,3581.6,3580.4,0.8232]
[1732872295922,2.79258,3581.0,3580.4,0.8232]
[1732872296124,2.79265,3580.9,3580.4,0.8232]
[1732872297490,2.79267,3580.8,3580.4,0.8232]
[1732872297686,2.79275,3580.7,3580.4,0.8232]
[1732872298613,0.8114,3581.1,3580.0,2.79328]
[1732872298614,2.79244,3581.1,3580.5,2.79289]
[1732872298816,2.7922,3581.4,3580.6,1.095089]
[1732872299125,2.7922,3581.4,3580.6,0.8158]
[1732872299126,2.79241,3581.2,3580.6,0.8158]
[1732872299744,2.79245,3581.1,3580.6,0.8158]
[1732872300600,2.79251,3581.1,3580.6,0.8158]
[1732872301647,2.79257,3581.0,3580.6,0.8158]
[1732872301831,5.58515,3581.0,3580.6,0.8158]
[1732872302164,2.79271,3580.8,3580.6,0.8158]
[1732872302868,2.79275,3580.7,3580.3,0.761]
[1732872303065,2.79275,3580.7,3580.4,0.06050512]
[1732872305475,0.55,3581.5,3580.4,0.06050512]
[1732872305682,2.7929,3580.5,3580.4,0.06050512]
[1732872305982,2.79314,3580.2,3579.9,0.7629]
[1732872306284,2.79314,3580.2,3580.0,0.05883717]
[1732872307177,2.79299,3580.4,3580.0,0.05883717]
[1732872307883,2.79308,3580.3,3580.0,0.05883717]
[1732872308054,0.55,3580.7,3580.0,0.05883717]
[1732872308255,2.79321,3580.1,3579.6,0.7514]
[1732872308564,2.79334,3580.0,3579.6,0.7514]
[1732872309047,2.79322,3580.1,3579.6,1.105921]
[1732872309248,2.79306,3580.3,3579.6,1.105921]
[1732872309685,2.79314,3580.2,3579.6,1.105921]
[1732872310584,2.79322,3580.1,3579.6,1.105921]
[1732872310796,2.79322,3580.1,3579.6,0.7514]
[1732872310951,2.79338,3579.9,3579.6,0.7514]
[1732872311152,2.79322,3580.1,3579.6,0.7514]
[1732872311353,2.79322,3580.1,3579.3,2.79382]
[1732872311354,2.7928,3580.7,3580.1,0.8263]
[1732872311660,2.7926,3580.9,3580.1,0.8263]
[1732872311661,2.79284,3580.6,3580.1,0.8263]
[1732872313187,2.79299,3580.4,3580.1,0.8263]
[1732872313487,2.79284,3580.6,3580.1,0.8263]
[1732872313689,0.7754,3581.0,3580.1,0.8263]
[1732872313851,0.356782,3580.9,3580.1,0.8263]
[1732872314892,2.79292,3580.5,3580.1,0.8263]
[1732872315966,2.79303,3580.4,3580.1,0.8263]
[1732872316289,2.79306,3580.3,3580.1,0.8263]
[1732872317963,2.79298,3580.4,3579.7,0.7621]
[1732872318164,2.79312,3580.3,3580.2,0.05903677]
[1732872318379,2.79312,3580.3,3579.7,0.7621]
[1732872319055,2.79312,3580.3,3579.8,0.05901568]
[1732872319285,2.79312,3580.3,3579.7,0.7621]
[1732872319656,2.79312,3580.3,3579.8,0.05908201]
[1732872319865,2.79328,3580.1,3579.8,0.3614782]
[1732872320056,2.79328,3580.1,3579.7,0.7621]
[1732872320272,2.79328,3580.1,3579.9,0.05890814]
[1732872320490,2.79329,3580.0,3579.7,0.7621]
[1732872320780,2.79344,3579.9,3579.2,3.7963]
[1732872322193,2.79344,3579.9,3579.2,6.59021]
[1732872322393,2.79329,3580.0,3579.3,0.659021]
[1732872322619,2.7935,3579.8,3579.2,0.7963]
[1732872323225,2.7935,3579.8,3579.2,3.59019]
[1732872323580,2.79332,3580.0,3579.2,3.59019]